[Event "Titled Tuesday Blitz November 08 Late 2022"]
[White "Tokhirjonova, Gulrukhbegim"]
[Black "Chernomordik, Pavel"]
[WhiteFideId "14203626"]
[BlackFideId "2804530"]
[WhiteElo "2236"]
[BlackElo "2192"]
[Result "1-0"]
[Round "09"]
[TimeControl "180+1"]
[Date "2022.11.09"]
[WhiteClock "0:00:51"]
[BlackClock "0:00:04"]

1. e4 {[%clk 0:03:00]}  g6 {[%clk 0:02:57]} 2. d4 {[%clk 0:02:57]}  Bg7 {[%clk 0:02:56]} 3. Nc3 {[%clk 0:02:57]}  d6 {[%clk 0:02:54]} 4. Be3 {[%clk 0:02:57]}  a6 {[%clk 0:02:54]} 5. a4 {[%clk 0:02:57]}  b6 {[%clk 0:02:53]} 6. Bd3 {[%clk 0:02:56]}  Bb7 {[%clk 0:02:52]} 7. Nf3 {[%clk 0:02:56]}  Nd7 {[%clk 0:02:51]} 8. O-O {[%clk 0:02:56]}  e6 {[%clk 0:02:43]} 9. Re1 {[%clk 0:02:55]}  Ne7 {[%clk 0:02:38]} 10. Qd2 {[%clk 0:02:56]}  h6 {[%clk 0:02:36]} 11. h3 {[%clk 0:02:53]}  g5 {[%clk 0:02:33]} 12. Nh2 {[%clk 0:02:52]}  Ng6 {[%clk 0:02:32]} 13. e5 {[%clk 0:02:46]}  dxe5 {[%clk 0:02:22]} 14. Bxg6 {[%clk 0:02:45]}  fxg6 {[%clk 0:02:20]} 15. Qd3 {[%clk 0:02:45]}  O-O {[%clk 0:02:13]} 16. Qxg6 {[%clk 0:02:31]}  Qf6 {[%clk 0:01:53]} 17. Qxf6 {[%clk 0:02:14]}  Bxf6 {[%clk 0:01:47]} 18. dxe5 {[%clk 0:02:13]}  Nxe5 {[%clk 0:01:41]} 19. Ng4 {[%clk 0:02:13]}  Nxg4 {[%clk 0:01:37]} 20. hxg4 {[%clk 0:02:13]}  Rad8 {[%clk 0:01:27]} 21. Rad1 {[%clk 0:02:11]}  Rxd1 {[%clk 0:01:21]} 22. Rxd1 {[%clk 0:02:12]}  Rd8 {[%clk 0:01:21]} 23. Rxd8+ {[%clk 0:02:07]}  Bxd8 {[%clk 0:01:20]} 24. f3 {[%clk 0:02:07]}  Bf6 {[%clk 0:01:17]} 25. Nd1 {[%clk 0:02:05]}  Bc6 {[%clk 0:01:15]} 26. b3 {[%clk 0:02:05]}  Kf7 {[%clk 0:01:10]} 27. Kf2 {[%clk 0:02:05]}  Ke7 {[%clk 0:01:05]} 28. Ke2 {[%clk 0:02:05]}  Kd6 {[%clk 0:01:05]} 29. Kd3 {[%clk 0:02:04]}  Be8 {[%clk 0:01:04]} 30. Nf2 {[%clk 0:02:01]}  b5 {[%clk 0:00:59]} 31. Ne4+ {[%clk 0:02:01]}  Ke7 {[%clk 0:00:58]} 32. Bc5+ {[%clk 0:01:58]}  Kf7 {[%clk 0:00:57]} 33. axb5 {[%clk 0:01:59]}  axb5 {[%clk 0:00:54]} 34. Bd4 {[%clk 0:01:57]}  Be7 {[%clk 0:00:49]} 35. Be5 {[%clk 0:01:56]}  Bd8 {[%clk 0:00:46]} 36. Kd4 {[%clk 0:01:49]}  Bd7 {[%clk 0:00:32]} 37. Nc5 {[%clk 0:01:42]}  Bc6 {[%clk 0:00:29]} 38. Na6 {[%clk 0:01:42]}  Bb7 {[%clk 0:00:25]} 39. Nxc7 {[%clk 0:01:31]}  Bxc7 {[%clk 0:00:23]} 40. Bxc7 {[%clk 0:01:32]}  b4 {[%clk 0:00:22]} 41. Bd6 {[%clk 0:01:28]}  Ba6 {[%clk 0:00:22]} 42. Bxb4 {[%clk 0:01:29]}  Bf1 {[%clk 0:00:22]} 43. g3 {[%clk 0:01:29]}  Be2 {[%clk 0:00:20]} 44. Ke3 {[%clk 0:01:29]}  Bd1 {[%clk 0:00:20]} 45. Bc3 {[%clk 0:01:27]}  Bxc2 {[%clk 0:00:19]} 46. b4 {[%clk 0:01:27]}  Ba4 {[%clk 0:00:20]} 47. f4 {[%clk 0:01:25]}  Bb5 {[%clk 0:00:17]} 48. Be5 {[%clk 0:01:22]}  Kg6 {[%clk 0:00:14]} 49. Bd6 {[%clk 0:01:16]}  Kf6 {[%clk 0:00:12]} 50. Bc7 {[%clk 0:01:13]}  Kg6 {[%clk 0:00:12]} 51. Bd8 {[%clk 0:00:55]}  Bc6 {[%clk 0:00:06]} 52. Kd4 {[%clk 0:00:50]}  Bf3 {[%clk 0:00:05]} 53. fxg5 {[%clk 0:00:51]}  hxg5 {[%clk 0:00:04]} 54. b5 {[%clk 0:00:50]}  Bxg4 {[%clk 0:00:04]} 55. b6 {[%clk 0:00:50]}  Bf3 {[%clk 0:00:04]} 56. Ke5 {[%clk 0:00:51]} 1-0


[Site "https://www.chess.com"]

[Event "Titled Tuesday Blitz November 08 Late 2022"]
[White "Tsukerman, Julia"]
[Black "Yanayt, Eugene"]
[WhiteFideId "2621649"]
[BlackFideId "2020165"]
[WhiteElo "1667"]
[BlackElo "2046"]
[Result "1-0"]
[Round "09"]
[TimeControl "180+1"]
[Date "2022.11.09"]
[WhiteClock "0:00:36"]
[BlackClock "0:01:18"]

1. e4 {[%clk 0:02:12]}  c5 {[%clk 0:02:59]} 2. Nf3 {[%clk 0:02:10]}  d6 {[%clk 0:02:57]} 3. d4 {[%clk 0:02:11]}  cxd4 {[%clk 0:02:56]} 4. Nxd4 {[%clk 0:02:12]}  Nf6 {[%clk 0:02:56]} 5. Nc3 {[%clk 0:02:12]}  g6 {[%clk 0:02:57]} 6. Be3 {[%clk 0:02:13]}  Bg7 {[%clk 0:02:57]} 7. f3 {[%clk 0:02:13]}  O-O {[%clk 0:02:57]} 8. Qd2 {[%clk 0:02:14]}  Nc6 {[%clk 0:02:58]} 9. O-O-O {[%clk 0:02:12]}  Nxd4 {[%clk 0:02:58]} 10. Bxd4 {[%clk 0:02:12]}  Qa5 {[%clk 0:02:57]} 11. Kb1 {[%clk 0:02:11]}  Rd8 {[%clk 0:02:57]} 12. Bc4 {[%clk 0:02:09]}  Be6 {[%clk 0:02:55]} 13. Bxe6 {[%clk 0:02:05]}  fxe6 {[%clk 0:02:55]} 14. g4 {[%clk 0:01:55]}  e5 {[%clk 0:02:48]} 15. Be3 {[%clk 0:01:52]}  e6 {[%clk 0:02:48]} 16. g5 {[%clk 0:01:36]}  Ne8 {[%clk 0:02:46]} 17. h4 {[%clk 0:01:33]}  b5 {[%clk 0:02:35]} 18. h5 {[%clk 0:01:31]}  b4 {[%clk 0:02:34]} 19. Ne2 {[%clk 0:01:29]}  Nc7 {[%clk 0:02:31]} 20. hxg6 {[%clk 0:01:26]}  hxg6 {[%clk 0:02:31]} 21. Nc1 {[%clk 0:01:26]}  Nb5 {[%clk 0:02:20]} 22. Nb3 {[%clk 0:01:12]}  Qa4 {[%clk 0:02:17]} 23. Qh2 {[%clk 0:01:07]}  Rac8 {[%clk 0:02:14]} 24. f4 {[%clk 0:01:01]}  exf4 {[%clk 0:02:07]} 25. Bxf4 {[%clk 0:00:58]}  Rc6 {[%clk 0:01:44]} 26. Bc1 {[%clk 0:00:46]}  Rd7 {[%clk 0:01:23]} 27. Qh7+ {[%clk 0:00:42]}  Kf8 {[%clk 0:01:23]} 28. Rdf1+ {[%clk 0:00:38]}  Ke8 {[%clk 0:01:19]} 29. Qg8+ {[%clk 0:00:37]}  Ke7 {[%clk 0:01:18]} 30. Rf7# {[%clk 0:00:36]} 1-0


[Site "https://www.chess.com"]

[Event "Titled Tuesday Blitz November 08 Late 2022"]
[White "Wieczorek, Oskar"]
[Black "Kleiman, Jake"]
[WhiteFideId "1133950"]
[BlackFideId "2020041"]
[WhiteElo "2404"]
[BlackElo "2518"]
[Result "0-1"]
[Round "09"]
[TimeControl "180+1"]
[Date "2022.11.08"]
[WhiteClock "0:00:01"]
[BlackClock "0:00:14"]

1. e4 {[%clk 0:03:00]}  e5 {[%clk 0:02:59]} 2. Nf3 {[%clk 0:03:01]}  Nc6 {[%clk 0:03:00]} 3. Nc3 {[%clk 0:03:01]}  Nf6 {[%clk 0:03:00]} 4. h3 {[%clk 0:03:02]}  h6 {[%clk 0:02:59]} 5. d4 {[%clk 0:02:56]}  exd4 {[%clk 0:02:59]} 6. Nxd4 {[%clk 0:02:57]}  Bb4 {[%clk 0:02:59]} 7. Nxc6 {[%clk 0:02:52]}  bxc6 {[%clk 0:03:00]} 8. Bd3 {[%clk 0:02:52]}  O-O {[%clk 0:03:00]} 9. O-O {[%clk 0:02:52]}  d5 {[%clk 0:03:01]} 10. e5 {[%clk 0:02:53]}  Nd7 {[%clk 0:02:58]} 11. f4 {[%clk 0:02:38]}  Nc5 {[%clk 0:02:51]} 12. f5 {[%clk 0:02:38]}  Re8 {[%clk 0:02:37]} 13. e6 {[%clk 0:02:00]}  Qf6 {[%clk 0:02:17]} 14. Be3 {[%clk 0:01:16]}  Nxd3 {[%clk 0:01:49]} 15. Qxd3 {[%clk 0:00:58]}  fxe6 {[%clk 0:01:29]} 16. fxe6 {[%clk 0:00:59]}  Qxe6 {[%clk 0:01:29]} 17. Rae1 {[%clk 0:01:00]}  Bd7 {[%clk 0:01:11]} 18. a3 {[%clk 0:00:29]}  Bd6 {[%clk 0:01:06]} 19. Na4 {[%clk 0:00:12]}  Qe5 {[%clk 0:00:55]} 20. Bf4 {[%clk 0:00:13]}  Qxe1 {[%clk 0:00:51]} 21. Rxe1 {[%clk 0:00:14]}  Rxe1+ {[%clk 0:00:51]} 22. Kf2 {[%clk 0:00:14]}  Rae8 {[%clk 0:00:36]} 23. Bxd6 {[%clk 0:00:15]}  cxd6 {[%clk 0:00:36]} 24. Nc3 {[%clk 0:00:15]}  a5 {[%clk 0:00:24]} 25. a4 {[%clk 0:00:15]}  Kh8 {[%clk 0:00:23]} 26. h4 {[%clk 0:00:11]}  R1e5 {[%clk 0:00:23]} 27. Nd1 {[%clk 0:00:08]}  Rf8+ {[%clk 0:00:21]} 28. Kg3 {[%clk 0:00:09]}  Bf5 {[%clk 0:00:19]} 29. Qd2 {[%clk 0:00:09]}  Be4 {[%clk 0:00:18]} 30. Ne3 {[%clk 0:00:09]}  Rf6 {[%clk 0:00:17]} 31. c4 {[%clk 0:00:09]}  Rg6+ {[%clk 0:00:16]} 32. Kh2 {[%clk 0:00:10]}  dxc4 {[%clk 0:00:15]} 33. g3 {[%clk 0:00:09]}  Rf6 {[%clk 0:00:15]} 34. Ng4 {[%clk 0:00:08]}  Rf1 {[%clk 0:00:15]} 35. Nf2 {[%clk 0:00:04]}  Bd5 {[%clk 0:00:15]} 36. g4 {[%clk 0:00:03]}  Ree1 {[%clk 0:00:13]} 37. Kg3 {[%clk 0:00:03]}  Rg1+ {[%clk 0:00:13]} 38. Kf4 {[%clk 0:00:03]}  Ref1 {[%clk 0:00:12]} 39. Ke3 {[%clk 0:00:02]}  Rg2 {[%clk 0:00:13]} 40. Qd4 {[%clk 0:00:01]}  Rfxf2 {[%clk 0:00:13]} 41. Qa7 {[%clk 0:00:01]}  Rf3+ {[%clk 0:00:14]} 42. Kd4 {[%clk 0:00:01]}  Rd2# {[%clk 0:00:14]} 0-1


[Site "https://www.chess.com"]

[Event "Titled Tuesday Blitz November 08 Late 2022"]
[White "Winterberg, Lukas"]
[Black "Makridis, Dimitrios"]
[WhiteFideId "24622702"]
[BlackFideId "25864475"]
[WhiteElo "2349"]
[BlackElo "2272"]
[Result "0-1"]
[Round "09"]
[TimeControl "180+1"]
[Date "2022.11.08"]
[WhiteClock "0:00:05"]
[BlackClock "0:00:42"]

1. d4 {[%clk 0:03:00]}  Nf6 {[%clk 0:02:59]} 2. Nf3 {[%clk 0:03:01]}  d5 {[%clk 0:02:58]} 3. c4 {[%clk 0:03:01]}  e6 {[%clk 0:02:58]} 4. Nc3 {[%clk 0:03:01]}  h6 {[%clk 0:02:58]} 5. g3 {[%clk 0:02:59]}  Bd6 {[%clk 0:02:59]} 6. a3 {[%clk 0:02:57]}  O-O {[%clk 0:02:52]} 7. g4 {[%clk 0:02:56]}  c5 {[%clk 0:02:40]} 8. g5 {[%clk 0:02:26]}  hxg5 {[%clk 0:02:39]} 9. Bxg5 {[%clk 0:02:24]}  Nc6 {[%clk 0:02:37]} 10. cxd5 {[%clk 0:02:07]}  exd5 {[%clk 0:02:27]} 11. Nxd5 {[%clk 0:01:59]}  Be7 {[%clk 0:02:26]} 12. Nxe7+ {[%clk 0:01:49]}  Qxe7 {[%clk 0:02:27]} 13. e3 {[%clk 0:01:44]}  cxd4 {[%clk 0:02:19]} 14. Nxd4 {[%clk 0:01:40]}  Rd8 {[%clk 0:02:18]} 15. Qe2 {[%clk 0:01:09]}  Nxd4 {[%clk 0:02:07]} 16. exd4 {[%clk 0:01:06]}  Qd6 {[%clk 0:02:07]} 17. Be3 {[%clk 0:00:59]}  Bg4 {[%clk 0:02:04]} 18. Qd3 {[%clk 0:00:48]}  Re8 {[%clk 0:01:53]} 19. Be2 {[%clk 0:00:44]}  Bxe2 {[%clk 0:01:49]} 20. Qxe2 {[%clk 0:00:43]}  Rac8 {[%clk 0:01:46]} 21. O-O {[%clk 0:00:40]}  Re4 {[%clk 0:01:43]} 22. Qf3 {[%clk 0:00:34]}  Rh4 {[%clk 0:01:39]} 23. h3 {[%clk 0:00:30]}  Nd5 {[%clk 0:01:26]} 24. Rfe1 {[%clk 0:00:26]}  Nxe3 {[%clk 0:01:20]} 25. Rxe3 {[%clk 0:00:23]}  Rxd4 {[%clk 0:01:11]} 26. Rae1 {[%clk 0:00:19]}  Qg6+ {[%clk 0:01:05]} 27. Kh2 {[%clk 0:00:16]}  Rc2 {[%clk 0:00:58]} 28. R1e2 {[%clk 0:00:14]}  Rdd2 {[%clk 0:00:53]} 29. Re8+ {[%clk 0:00:13]}  Kh7 {[%clk 0:00:52]} 30. Rxd2 {[%clk 0:00:11]}  Rxd2 {[%clk 0:00:53]} 31. Re2 {[%clk 0:00:11]}  Rd3 {[%clk 0:00:48]} 32. Re3 {[%clk 0:00:11]}  Rd4 {[%clk 0:00:44]} 33. Re7 {[%clk 0:00:09]}  Qd6+ {[%clk 0:00:43]} 34. Kg2 {[%clk 0:00:07]}  Qxe7 {[%clk 0:00:42]} 35. Qf5+ {[%clk 0:00:07]}  Kg8 {[%clk 0:00:42]} 36. Qc8+ {[%clk 0:00:07]}  Rd8 {[%clk 0:00:42]} 37. Qxb7 {[%clk 0:00:05]}  Qxb7+ {[%clk 0:00:42]} 0-1


[Site "https://www.chess.com"]

[Event "Titled Tuesday Blitz November 08 Late 2022"]
[White "Yano, William Jorge Froes"]
[Black "Curtis, John"]
[WhiteFideId "2112949"]
[BlackFideId "3200256"]
[WhiteElo "2122"]
[BlackElo "2203"]
[Result "1/2-1/2"]
[Round "09"]
[TimeControl "180+1"]
[Date "2022.11.09"]
[WhiteClock "0:00:08"]
[BlackClock "0:01:15"]

1. e4 {[%clk 0:03:00]}  c5 {[%clk 0:02:57]} 2. Nf3 {[%clk 0:03:00]}  d6 {[%clk 0:02:57]} 3. Bb5+ {[%clk 0:03:00]}  Nd7 {[%clk 0:02:56]} 4. Ba4 {[%clk 0:03:01]}  Nf6 {[%clk 0:02:54]} 5. e5 {[%clk 0:02:49]}  dxe5 {[%clk 0:02:53]} 6. Nxe5 {[%clk 0:02:49]}  a6 {[%clk 0:02:53]} 7. Nxd7 {[%clk 0:02:44]}  Bxd7 {[%clk 0:02:53]} 8. Bxd7+ {[%clk 0:02:43]}  Qxd7 {[%clk 0:02:53]} 9. O-O {[%clk 0:02:44]}  e6 {[%clk 0:02:52]} 10. Nc3 {[%clk 0:02:43]}  Be7 {[%clk 0:02:51]} 11. d3 {[%clk 0:02:43]}  h6 {[%clk 0:02:51]} 12. Bf4 {[%clk 0:02:42]}  Nd5 {[%clk 0:02:49]} 13. Bd2 {[%clk 0:02:41]}  O-O {[%clk 0:02:46]} 14. Qf3 {[%clk 0:02:37]}  Nb4 {[%clk 0:02:43]} 15. Rac1 {[%clk 0:02:31]}  Nc6 {[%clk 0:02:28]} 16. Rfe1 {[%clk 0:02:27]}  Nd4 {[%clk 0:02:27]} 17. Qh3 {[%clk 0:02:27]}  f5 {[%clk 0:02:27]} 18. Ne2 {[%clk 0:02:04]}  Bf6 {[%clk 0:02:21]} 19. Nf4 {[%clk 0:01:56]}  e5 {[%clk 0:02:13]} 20. Nh5 {[%clk 0:01:56]}  Nc6 {[%clk 0:02:00]} 21. Bc3 {[%clk 0:01:12]}  Rae8 {[%clk 0:01:54]} 22. Rcd1 {[%clk 0:01:06]}  b6 {[%clk 0:01:54]} 23. Nxf6+ {[%clk 0:00:39]}  Rxf6 {[%clk 0:01:53]} 24. Re3 {[%clk 0:00:37]}  Nd4 {[%clk 0:01:41]} 25. Bxd4 {[%clk 0:00:22]}  exd4 {[%clk 0:01:40]} 26. Rxe8+ {[%clk 0:00:20]}  Qxe8 {[%clk 0:01:40]} 27. Qf3 {[%clk 0:00:20]}  Re6 {[%clk 0:01:40]} 28. Qd5 {[%clk 0:00:20]}  Kh8 {[%clk 0:01:38]} 29. g3 {[%clk 0:00:20]}  Re5 {[%clk 0:01:33]} 30. Qd6 {[%clk 0:00:18]}  Re6 {[%clk 0:01:29]} 31. Qd5 {[%clk 0:00:18]}  Re5 {[%clk 0:01:29]} 32. Qb7 {[%clk 0:00:16]}  Re2 {[%clk 0:01:17]} 33. Rc1 {[%clk 0:00:07]}  Rxf2 {[%clk 0:01:13]} 34. Kxf2 {[%clk 0:00:06]}  Qe3+ {[%clk 0:01:13]} 35. Kg2 {[%clk 0:00:07]}  Qxc1 {[%clk 0:01:13]} 36. Qc8+ {[%clk 0:00:07]}  Kh7 {[%clk 0:01:13]} 37. Qxf5+ {[%clk 0:00:08]}  Kg8 {[%clk 0:01:14]} 38. Qe6+ {[%clk 0:00:08]}  Kh7 {[%clk 0:01:14]} 39. Qf5+ {[%clk 0:00:08]}  Kh8 {[%clk 0:01:15]} 40. Qf8+ {[%clk 0:00:08]}  Kh7 {[%clk 0:01:15]} 41. Qf5+ {[%clk 0:00:08]} 1/2-1/2


[Site "https://www.chess.com"]

[Event "Titled Tuesday Blitz November 08 Late 2022"]
[White "Yuan, Qingyu"]
[Black "Becerra, Juan David"]
[WhiteFideId "8609772"]
[BlackFideId "4404998"]
[WhiteElo "2359"]
[BlackElo "2281"]
[Result "0-1"]
[Round "09"]
[TimeControl "180+1"]
[Date "2022.11.08"]
[WhiteClock "0:00:07"]
[BlackClock "0:00:07"]

1. e4 {[%clk 0:03:00]}  c5 {[%clk 0:02:58]} 2. Nf3 {[%clk 0:03:00]}  d6 {[%clk 0:02:57]} 3. d4 {[%clk 0:03:00]}  cxd4 {[%clk 0:02:58]} 4. Qxd4 {[%clk 0:03:00]}  Nc6 {[%clk 0:02:58]} 5. Qe3 {[%clk 0:03:00]}  g6 {[%clk 0:02:51]} 6. h3 {[%clk 0:03:00]}  Bg7 {[%clk 0:02:51]} 7. Be2 {[%clk 0:02:59]}  Nf6 {[%clk 0:02:49]} 8. O-O {[%clk 0:02:59]}  O-O {[%clk 0:02:49]} 9. Rd1 {[%clk 0:03:00]}  Bd7 {[%clk 0:02:34]} 10. c4 {[%clk 0:02:56]}  a5 {[%clk 0:02:32]} 11. Nc3 {[%clk 0:02:56]}  a4 {[%clk 0:02:32]} 12. c5 {[%clk 0:02:39]}  a3 {[%clk 0:02:27]} 13. cxd6 {[%clk 0:02:27]}  exd6 {[%clk 0:02:17]} 14. Rxd6 {[%clk 0:02:23]}  Qb8 {[%clk 0:01:58]} 15. Rd2 {[%clk 0:02:07]}  Re8 {[%clk 0:01:57]} 16. Rb1 {[%clk 0:01:58]}  Bf5 {[%clk 0:01:42]} 17. Bd3 {[%clk 0:01:45]}  Nb4 {[%clk 0:01:42]} 18. Bb5 {[%clk 0:01:40]}  Nxe4 {[%clk 0:01:38]} 19. Bxe8 {[%clk 0:01:26]}  Nxd2 {[%clk 0:01:36]} 20. Bxd2 {[%clk 0:01:13]}  Bxb1 {[%clk 0:01:34]} 21. Nxb1 {[%clk 0:00:58]}  Qxe8 {[%clk 0:01:00]} 22. Bxb4 {[%clk 0:00:47]}  axb2 {[%clk 0:00:57]} 23. Qxe8+ {[%clk 0:00:42]}  Rxe8 {[%clk 0:00:58]} 24. Kf1 {[%clk 0:00:41]}  h6 {[%clk 0:00:48]} 25. Nfd2 {[%clk 0:00:33]}  f5 {[%clk 0:00:47]} 26. a3 {[%clk 0:00:31]}  Kf7 {[%clk 0:00:47]} 27. Nc4 {[%clk 0:00:30]}  Ke6 {[%clk 0:00:43]} 28. Ke2 {[%clk 0:00:29]}  Kd5+ {[%clk 0:00:43]} 29. Ne3+ {[%clk 0:00:27]}  Kc6 {[%clk 0:00:36]} 30. Kd2 {[%clk 0:00:27]}  Kb5 {[%clk 0:00:33]} 31. Nd1 {[%clk 0:00:20]}  Ka4 {[%clk 0:00:27]} 32. Kc2 {[%clk 0:00:19]}  Re2+ {[%clk 0:00:26]} 33. Nd2 {[%clk 0:00:19]}  g5 {[%clk 0:00:17]} 34. g3 {[%clk 0:00:19]}  g4 {[%clk 0:00:16]} 35. hxg4 {[%clk 0:00:16]}  fxg4 {[%clk 0:00:17]} 36. Bc3 {[%clk 0:00:05]}  b1=Q+ {[%clk 0:00:04]} 37. Kxb1 {[%clk 0:00:04]}  Bf8 {[%clk 0:00:03]} 38. Kc2 {[%clk 0:00:04]}  Bxa3 {[%clk 0:00:03]} 39. Kd3 {[%clk 0:00:04]}  Re8 {[%clk 0:00:02]} 40. Ne3 {[%clk 0:00:05]}  b5 {[%clk 0:00:03]} 41. Nxg4 {[%clk 0:00:05]}  Rd8+ {[%clk 0:00:03]} 42. Kc2 {[%clk 0:00:05]}  h5 {[%clk 0:00:04]} 43. Nf6 {[%clk 0:00:05]}  b4 {[%clk 0:00:05]} 44. Be5 {[%clk 0:00:03]}  Rc8+ {[%clk 0:00:04]} 45. Kd3 {[%clk 0:00:04]}  b3 {[%clk 0:00:05]} 46. Nxh5 {[%clk 0:00:04]}  Rd8+ {[%clk 0:00:04]} 47. Ke2 {[%clk 0:00:03]}  b2 {[%clk 0:00:05]} 48. f4 {[%clk 0:00:03]}  Rxd2+ {[%clk 0:00:02]} 49. Kxd2 {[%clk 0:00:04]}  b1=Q {[%clk 0:00:03]} 50. Nf6 {[%clk 0:00:04]}  Bc1+ {[%clk 0:00:03]} 51. Ke2 {[%clk 0:00:04]}  Qc2+ {[%clk 0:00:03]} 52. Kf3 {[%clk 0:00:05]}  Qd3+ {[%clk 0:00:03]} 53. Kg4 {[%clk 0:00:05]}  Bd2 {[%clk 0:00:03]} 54. Nh5 {[%clk 0:00:04]}  Qe2+ {[%clk 0:00:02]} 55. Kh4 {[%clk 0:00:04]}  Qh2+ {[%clk 0:00:02]} 56. Kg5 {[%clk 0:00:05]}  Be1 {[%clk 0:00:03]} 57. g4 {[%clk 0:00:04]}  Bh4+ {[%clk 0:00:02]} 58. Kf5 {[%clk 0:00:05]}  Qc2+ {[%clk 0:00:03]} 59. Ke6 {[%clk 0:00:04]}  Qg6+ {[%clk 0:00:04]} 60. Kd5 {[%clk 0:00:04]}  Qxg4 {[%clk 0:00:03]} 61. Ng7 {[%clk 0:00:05]}  Qd7+ {[%clk 0:00:03]} 62. Ke4 {[%clk 0:00:05]}  Qc6+ {[%clk 0:00:02]} 63. Kf5 {[%clk 0:00:05]}  Qd7+ {[%clk 0:00:02]} 64. Kg6 {[%clk 0:00:05]}  Be7 {[%clk 0:00:03]} 65. f5 {[%clk 0:00:04]}  Bf8 {[%clk 0:00:04]} 66. Ne6 {[%clk 0:00:04]}  Qe8+ {[%clk 0:00:03]} 67. Kg5 {[%clk 0:00:04]}  Be7+ {[%clk 0:00:04]} 68. Kg4 {[%clk 0:00:05]}  Qf7 {[%clk 0:00:04]} 69. Bf4 {[%clk 0:00:05]}  Bf6 {[%clk 0:00:04]} 70. Bd6 {[%clk 0:00:05]}  Qg8+ {[%clk 0:00:04]} 71. Kf4 {[%clk 0:00:05]}  Qh7 {[%clk 0:00:05]} 72. Ke4 {[%clk 0:00:05]}  Kb5 {[%clk 0:00:04]} 73. Bf4 {[%clk 0:00:05]}  Qb7+ {[%clk 0:00:04]} 74. Ke3 {[%clk 0:00:03]}  Qg2 {[%clk 0:00:02]} 75. Nc7+ {[%clk 0:00:01]}  Kc4 {[%clk 0:00:02]} 76. Ne6 {[%clk 0:00:02]}  Qh3+ {[%clk 0:00:02]} 77. Kf2 {[%clk 0:00:01]}  Qd3 {[%clk 0:00:02]} 78. Bg3 {[%clk 0:00:01]}  Qxf5+ {[%clk 0:00:02]} 79. Nf4 {[%clk 0:00:02]}  Bd4+ {[%clk 0:00:02]} 80. Kf3 {[%clk 0:00:02]}  Be5 {[%clk 0:00:02]} 81. Ke3 {[%clk 0:00:03]}  Bxf4+ {[%clk 0:00:03]} 82. Bxf4 {[%clk 0:00:04]}  Kd5 {[%clk 0:00:03]} 83. Kf3 {[%clk 0:00:04]}  Qe4+ {[%clk 0:00:04]} 84. Kg4 {[%clk 0:00:05]}  Ke6 {[%clk 0:00:05]} 85. Kg5 {[%clk 0:00:05]}  Qf5+ {[%clk 0:00:05]} 86. Kh4 {[%clk 0:00:05]}  Qxf4+ {[%clk 0:00:06]} 87. Kh5 {[%clk 0:00:06]}  Qg3 {[%clk 0:00:06]} 88. Kh6 {[%clk 0:00:07]}  Kf6 {[%clk 0:00:06]} 89. Kh5 {[%clk 0:00:07]}  Qh3# {[%clk 0:00:07]} 0-1


[Site "https://www.chess.com"]

[Event "Titled Tuesday Blitz November 08 Late 2022"]
[White "Zakhartsov, Vladimir"]
[Black "Kuzmicz, Krystian"]
[WhiteFideId "4145097"]
[BlackFideId "1119125"]
[WhiteElo "2525"]
[BlackElo "2380"]
[Result "1-0"]
[Round "09"]
[TimeControl "180+1"]
[Date "2022.11.08"]
[WhiteClock "0:00:04"]
[BlackClock "0:00:02"]

1. d4 {[%clk 0:03:00]}  g6 {[%clk 0:02:44]} 2. e4 {[%clk 0:03:00]}  Bg7 {[%clk 0:02:43]} 3. Nf3 {[%clk 0:03:01]}  c6 {[%clk 0:02:43]} 4. c3 {[%clk 0:02:59]}  d5 {[%clk 0:02:42]} 5. e5 {[%clk 0:02:56]}  Bg4 {[%clk 0:02:42]} 6. Nbd2 {[%clk 0:02:55]}  e6 {[%clk 0:02:38]} 7. h3 {[%clk 0:02:53]}  Bxf3 {[%clk 0:02:38]} 8. Nxf3 {[%clk 0:02:54]}  Nd7 {[%clk 0:02:38]} 9. Bd3 {[%clk 0:02:53]}  Ne7 {[%clk 0:02:37]} 10. O-O {[%clk 0:02:53]}  c5 {[%clk 0:02:38]} 11. Re1 {[%clk 0:02:51]}  Nc6 {[%clk 0:02:37]} 12. Bf4 {[%clk 0:02:48]}  Qb6 {[%clk 0:02:36]} 13. Bf1 {[%clk 0:02:31]}  O-O {[%clk 0:02:25]} 14. Qd2 {[%clk 0:02:29]}  Rfc8 {[%clk 0:02:23]} 15. a3 {[%clk 0:02:21]}  cxd4 {[%clk 0:02:18]} 16. cxd4 {[%clk 0:02:20]}  Na5 {[%clk 0:02:17]} 17. Rab1 {[%clk 0:02:12]}  Nc4 {[%clk 0:02:02]} 18. Qd3 {[%clk 0:02:00]}  Rc7 {[%clk 0:01:52]} 19. h4 {[%clk 0:02:00]}  Rac8 {[%clk 0:01:50]} 20. h5 {[%clk 0:01:58]}  Nxb2 {[%clk 0:01:47]} 21. Qe3 {[%clk 0:01:58]}  Rc3 {[%clk 0:01:43]} 22. Rec1 {[%clk 0:01:38]}  Rxc1 {[%clk 0:01:33]} 23. Rxc1 {[%clk 0:01:39]}  Nc4 {[%clk 0:01:28]} 24. Qd3 {[%clk 0:01:32]}  Qb2 {[%clk 0:01:20]} 25. Rb1 {[%clk 0:01:27]}  Qxa3 {[%clk 0:01:04]} 26. Qxa3 {[%clk 0:01:27]}  Nxa3 {[%clk 0:01:05]} 27. Rxb7 {[%clk 0:01:27]}  Nb6 {[%clk 0:01:01]} 28. Rxa7 {[%clk 0:01:27]}  Nbc4 {[%clk 0:00:57]} 29. h6 {[%clk 0:01:05]}  Bf8 {[%clk 0:00:54]} 30. Rb7 {[%clk 0:00:52]}  Nc2 {[%clk 0:00:41]} 31. Bd3 {[%clk 0:00:51]}  Nb4 {[%clk 0:00:37]} 32. Be2 {[%clk 0:00:46]}  Nc2 {[%clk 0:00:32]} 33. Bd1 {[%clk 0:00:44]}  Nb4 {[%clk 0:00:27]} 34. Nh2 {[%clk 0:00:40]}  Nd3 {[%clk 0:00:26]} 35. Ng4 {[%clk 0:00:36]}  Bg7 {[%clk 0:00:15]} 36. Bg5 {[%clk 0:00:20]}  Bh8 {[%clk 0:00:14]} 37. Bf6 {[%clk 0:00:20]}  Rf8 {[%clk 0:00:11]} 38. Ba4 {[%clk 0:00:17]}  Nf4 {[%clk 0:00:10]} 39. Bxh8 {[%clk 0:00:08]}  Kxh8 {[%clk 0:00:09]} 40. Kf1 {[%clk 0:00:08]}  Nd2+ {[%clk 0:00:09]} 41. Ke1 {[%clk 0:00:09]}  Ne4 {[%clk 0:00:09]} 42. g3 {[%clk 0:00:07]}  Nd3+ {[%clk 0:00:06]} 43. Kf1 {[%clk 0:00:07]}  Nc3 {[%clk 0:00:02]} 44. Bc2 {[%clk 0:00:07]}  Nc1 {[%clk 0:00:02]} 45. f4 {[%clk 0:00:05]}  N1e2 {[%clk 0:00:02]} 46. Rb4 {[%clk 0:00:04]} 1-0


[Site "https://www.chess.com"]